[Event "*** Titled Tuesday Blitz"]
[Site "Chess.com"]
[Date "2020.12.01"]
[Round "3"]
[White "hawes33"]
[Black "RobPeresian"]
[Result "0-1"]
[WhiteElo "2248"]
[BlackElo "2435"]
[TimeControl "180+1"]
[EndTime "10:27:18 PST"]
[Termination "RobPeresian won by resignation"]

1. e4 {[%clk 0:03:00.9]} 1... e5 {[%clk 0:02:55.9]} 2. Nf3 {[%clk 0:02:56.5]}
2... Nc6 {[%clk 0:02:56]} 3. d4 {[%clk 0:02:53.8]} 3... exd4 {[%clk 0:02:55.5]}
4. Bc4 {[%clk 0:02:51.2]} 4... Nf6 {[%clk 0:02:53.5]} 5. e5 {[%clk 0:02:48.2]}
5... Ne4 {[%clk 0:02:52.7]} 6. O-O {[%clk 0:02:44.3]} 6... d5 {[%clk 0:02:52.6]}
7. Bb5 {[%clk 0:02:40.2]} 7... Bc5 {[%clk 0:02:46.9]} 8. Bxc6+ {[%clk
0:02:23.3]} 8... bxc6 {[%clk 0:02:45.4]} 9. Nxd4 {[%clk 0:02:23.9]} 9... Bd7
{[%clk 0:02:45.5]} 10. Be3 {[%clk 0:02:22.9]} 10... O-O {[%clk 0:02:44.8]} 11.
f3 {[%clk 0:02:22.2]} 11... Ng5 {[%clk 0:02:43.4]} 12. f4 {[%clk 0:02:22]} 12...
Ne4 {[%clk 0:02:40.9]} 13. Nd2 {[%clk 0:02:16.3]} 13... f6 {[%clk 0:02:31.1]}
14. Nxe4 {[%clk 0:02:08.5]} 14... dxe4 {[%clk 0:02:30.4]} 15. exf6 {[%clk
0:02:05.6]} 15... Qxf6 {[%clk 0:02:28.6]} 16. c3 {[%clk 0:02:05.9]} 16... Qg6
{[%clk 0:02:15.3]} 17. f5 {[%clk 0:02:00.2]} 17... Bxf5 {[%clk 0:02:11.7]} 18.
Nxf5 {[%clk 0:01:59.8]} 18... Rxf5 {[%clk 0:02:11]} 19. Bxc5 {[%clk 0:01:59.8]}
19... Rxc5 {[%clk 0:02:11]} 20. Qd7 {[%clk 0:01:51.5]} 20... Re8 {[%clk
0:01:57.7]} 21. Rf4 {[%clk 0:01:40.9]} 21... h6 {[%clk 0:01:39.2]} 22. h3 {[%clk
0:01:33.3]} 22... e3 {[%clk 0:01:36.6]} 23. Rg4 {[%clk 0:01:27.6]} 23... Qf7
{[%clk 0:01:35.8]} 24. Qd3 {[%clk 0:01:23.9]} 24... e2 {[%clk 0:01:33]} 25. Re1
{[%clk 0:01:22]} 25... Rce5 {[%clk 0:01:32.5]} 26. Rg3 {[%clk 0:01:20.5]} 26...
Qxa2 {[%clk 0:01:18.6]} 27. b3 {[%clk 0:00:45.3]} 27... Qxb3 {[%clk 0:01:16.3]}
28. Qg6 {[%clk 0:00:41]} 28... Qf7 {[%clk 0:01:15.1]} 29. Qxh6 {[%clk
0:00:38.7]} 29... Rf5 {[%clk 0:01:08]} 30. Qd2 {[%clk 0:00:33.4]} 30... Rf1+
{[%clk 0:01:06.6]} 31. Kh2 {[%clk 0:00:33.8]} 31... Qf2 {[%clk 0:01:02.8]} 32.
Rxg7+ {[%clk 0:00:16.2]} 32... Kxg7 {[%clk 0:01:02.8]} 33. Qg5+ {[%clk
0:00:15.6]} 33... Kf7 {[%clk 0:01:02.9]} 34. Rxe2 {[%clk 0:00:14.1]} 34... Rxe2
{[%clk 0:01:01.9]} 35. Qh5+ {[%clk 0:00:12.4]} 35... Ke6 {[%clk 0:01:01.9]} 36.
Qh6+ {[%clk 0:00:11.9]} 36... Qf6 {[%clk 0:01:01]} 0-1

[Event "*** Titled Tuesday Blitz"]
[Site "Chess.com"]
[Date "2020.12.01"]
[Round "3"]
[White "Smile2005"]
[Black "HouseOfDurin"]
[Result "1-0"]
[WhiteElo "2321"]
[BlackElo "2110"]
[TimeControl "180+1"]
[EndTime "10:27:18 PST"]
[Termination "Smile2005 won by checkmate"]

1. Nf3 {[%clk 0:02:57.2]} 1... c5 {[%clk 0:03:00.2]} 2. g3 {[%clk 0:02:58.1]}
2... Nc6 {[%clk 0:03:00.7]} 3. Bg2 {[%clk 0:02:59]} 3... e5 {[%clk 0:02:59.6]}
4. O-O {[%clk 0:02:59.9]} 4... g6 {[%clk 0:03:00.1]} 5. d3 {[%clk 0:03:00.8]}
5... Bg7 {[%clk 0:03:00.7]} 6. e4 {[%clk 0:03:00.2]} 6... h6 {[%clk 0:03:00.2]}
7. Nc3 {[%clk 0:03:01.1]} 7... Nge7 {[%clk 0:02:59.8]} 8. Nd5 {[%clk 0:02:56.8]}
8... O-O {[%clk 0:02:57.7]} 9. Be3 {[%clk 0:02:54.2]} 9... d6 {[%clk 0:02:57.9]}
10. Qd2 {[%clk 0:02:54.3]} 10... Kh7 {[%clk 0:02:57.1]} 11. c3 {[%clk
0:02:53.5]} 11... f5 {[%clk 0:02:54.8]} 12. Nxe7 {[%clk 0:02:52.1]} 12... Qxe7
{[%clk 0:02:39.1]} 13. exf5 {[%clk 0:02:51.7]} 13... gxf5 {[%clk 0:02:38.7]} 14.
Ne1 {[%clk 0:02:51.1]} 14... Qf6 {[%clk 0:02:16.9]} 15. f4 {[%clk 0:02:50.4]}
15... Rb8 {[%clk 0:02:07.2]} 16. Nf3 {[%clk 0:02:48.8]} 16... Bd7 {[%clk
0:02:03.1]} 17. Rae1 {[%clk 0:02:47.8]} 17... b6 {[%clk 0:01:57.7]} 18. fxe5
{[%clk 0:02:42.4]} 18... dxe5 {[%clk 0:01:51.9]} 19. Bf2 {[%clk 0:02:37.1]}
19... Rbd8 {[%clk 0:01:50.3]} 20. Qe2 {[%clk 0:02:36.3]} 20... Be6 {[%clk
0:01:32.4]} 21. b3 {[%clk 0:02:35.1]} 21... Rd6 {[%clk 0:01:19.6]} 22. Nh4
{[%clk 0:02:34.4]} 22... Rfd8 {[%clk 0:01:15.8]} 23. h3 {[%clk 0:02:31.9]} 23...
Qg5 {[%clk 0:00:58.3]} 24. Kh2 {[%clk 0:02:28.8]} 24... f4 {[%clk 0:00:48.3]}
25. gxf4 {[%clk 0:02:25.3]} 25... exf4 {[%clk 0:00:47.8]} 26. Be4+ {[%clk
0:02:21]} 26... Kg8 {[%clk 0:00:46.9]} 27. Rg1 {[%clk 0:02:17.8]} 27... Qf6
{[%clk 0:00:41.7]} 28. Rg6 {[%clk 0:02:17]} 28... Qe5 {[%clk 0:00:28.7]} 29. Nf3
{[%clk 0:01:54.8]} 29... Qh5 {[%clk 0:00:27.3]} 30. Reg1 {[%clk 0:01:54.3]}
30... R8d7 {[%clk 0:00:25.1]} 31. Bh4 {[%clk 0:01:47.6]} 31... Ne5 {[%clk
0:00:19.3]} 32. Qg2 {[%clk 0:01:39.8]} 32... Nxf3+ {[%clk 0:00:17.3]} 33. Bxf3
{[%clk 0:01:35.4]} 33... Qxh4 {[%clk 0:00:15.4]} 34. Rxg7+ {[%clk 0:01:35.4]}
34... Kf8 {[%clk 0:00:15.9]} 35. Rg8+ {[%clk 0:01:31.6]} 35... Bxg8 {[%clk
0:00:14.5]} 36. Qxg8+ {[%clk 0:01:32.5]} 36... Ke7 {[%clk 0:00:14.8]} 37. Rg7+
{[%clk 0:01:29.9]} 37... Kf6 {[%clk 0:00:14.8]} 38. Rg6+ {[%clk 0:01:29.3]}
38... Ke5 {[%clk 0:00:13.7]} 39. Qh8+ {[%clk 0:01:11.5]} 39... Kf5 {[%clk
0:00:11.1]} 40. Be4# {[%clk 0:01:09.8]} 1-0

[Event "*** Titled Tuesday Blitz"]
[Site "Chess.com"]
[Date "2020.12.01"]
[Round "3"]
[White "SantoBlue"]
[Black "Nikolaj_6"]
[Result "1-0"]
[WhiteElo "2889"]
[BlackElo "2623"]
[TimeControl "180+1"]
[EndTime "10:27:22 PST"]
[Termination "SantoBlue won by resignation"]

1. e4 {[%clk 0:03:00.9]} 1... c5 {[%clk 0:02:59.7]} 2. Nf3 {[%clk 0:02:59.2]}
2... d6 {[%clk 0:02:59.9]} 3. d4 {[%clk 0:02:59.4]} 3... cxd4 {[%clk 0:03:00.2]}
4. Nxd4 {[%clk 0:02:59.7]} 4... Nf6 {[%clk 0:02:59.6]} 5. Nc3 {[%clk 0:02:59.8]}
5... a6 {[%clk 0:02:59.8]} 6. a3 {[%clk 0:02:59.8]} 6... e5 {[%clk 0:02:58.3]}
7. Nf5 {[%clk 0:02:59.2]} 7... d5 {[%clk 0:02:56.2]} 8. Bg5 {[%clk 0:02:58.5]}
8... Bxf5 {[%clk 0:02:49.7]} 9. exf5 {[%clk 0:02:57.9]} 9... d4 {[%clk 0:02:47]}
10. Ne4 {[%clk 0:02:54.4]} 10... Nbd7 {[%clk 0:02:41.7]} 11. Bd3 {[%clk
0:02:50]} 11... Be7 {[%clk 0:02:40.8]} 12. Bxf6 {[%clk 0:02:47.5]} 12... Nxf6
{[%clk 0:02:40.3]} 13. O-O {[%clk 0:02:46.1]} 13... O-O {[%clk 0:02:36.7]} 14.
Qf3 {[%clk 0:02:40.8]} 14... Nd5 {[%clk 0:02:33.4]} 15. Bc4 {[%clk 0:02:32.4]}
15... Nb6 {[%clk 0:02:26.9]} 16. Bb3 {[%clk 0:02:30.7]} 16... Kh8 {[%clk
0:02:24.6]} 17. h4 {[%clk 0:02:14.7]} 17... Rc8 {[%clk 0:02:13.5]} 18. g4 {[%clk
0:02:06.8]} 18... Nc4 {[%clk 0:02:13.2]} 19. g5 {[%clk 0:02:02.8]} 19... b5
{[%clk 0:02:09.4]} 20. f6 {[%clk 0:01:49.6]} 20... gxf6 {[%clk 0:02:09.1]} 21.
gxf6 {[%clk 0:01:50.5]} 21... Bd6 {[%clk 0:02:01.9]} 22. Qf5 {[%clk 0:01:36.8]}
22... Rg8+ {[%clk 0:01:57.7]} 23. Kh1 {[%clk 0:01:36.7]} 23... Bb8 {[%clk
0:01:34.9]} 24. Bxc4 {[%clk 0:01:16.4]} 24... bxc4 {[%clk 0:01:27.9]} 25. Ng5
{[%clk 0:01:02]} 25... Qd5+ {[%clk 0:01:26.8]} 26. f3 {[%clk 0:01:01.1]} 26...
Rxg5 {[%clk 0:01:14.2]} 27. hxg5 {[%clk 0:00:55.1]} 27... Rg8 {[%clk 0:01:07]}
28. Rg1 {[%clk 0:00:47.8]} 28... d3 {[%clk 0:00:48]} 29. cxd3 {[%clk 0:00:41.9]}
29... cxd3 {[%clk 0:00:44]} 30. Rg2 {[%clk 0:00:41.5]} 30... Ba7 {[%clk
0:00:28.1]} 31. Rd1 {[%clk 0:00:32.8]} 1-0

[Event "*** Titled Tuesday Blitz"]
[Site "Chess.com"]
[Date "2020.12.01"]
[Round "3"]
[White "ChessLover0108"]
[Black "machinegun1"]
[Result "0-1"]
[WhiteElo "2776"]
[BlackElo "2533"]
[TimeControl "180+1"]
[EndTime "10:27:25 PST"]
[Termination "machinegun1 won on time"]

1. Nf3 {[%clk 0:03:00.9]} 1... Nf6 {[%clk 0:02:59.3]} 2. d4 {[%clk 0:03:01.8]}
2... d5 {[%clk 0:02:59.1]} 3. c4 {[%clk 0:02:51.7]} 3... e6 {[%clk 0:02:59.2]}
4. Nc3 {[%clk 0:02:10.5]} 4... c5 {[%clk 0:02:57.2]} 5. cxd5 {[%clk 0:02:07.5]}
5... cxd4 {[%clk 0:02:57]} 6. Qxd4 {[%clk 0:02:06.4]} 6... Nxd5 {[%clk
0:02:56.6]} 7. e4 {[%clk 0:02:04.4]} 7... Nc6 {[%clk 0:02:56.7]} 8. Bb5 {[%clk
0:01:48.6]} 8... Nxc3 {[%clk 0:02:56.1]} 9. Qxc3 {[%clk 0:01:43.7]} 9... Qb6
{[%clk 0:02:56.1]} 10. a4 {[%clk 0:01:28.3]} 10... a6 {[%clk 0:02:53.8]} 11. Be3
{[%clk 0:01:27.7]} 11... Qc7 {[%clk 0:02:42.5]} 12. Bxc6+ {[%clk 0:01:17.8]}
12... Qxc6 {[%clk 0:02:42.6]} 13. Qxc6+ {[%clk 0:01:17.8]} 13... bxc6 {[%clk
0:02:42.9]} 14. O-O {[%clk 0:01:17.2]} 14... f6 {[%clk 0:02:41.9]} 15. Rfc1
{[%clk 0:01:16.6]} 15... Bb7 {[%clk 0:02:37.6]} 16. Nd4 {[%clk 0:01:15.9]} 16...
Kd7 {[%clk 0:02:35.1]} 17. Rd1 {[%clk 0:01:14]} 17... Ke7 {[%clk 0:02:29.5]} 18.
Rac1 {[%clk 0:01:12.9]} 18... Rc8 {[%clk 0:02:28.5]} 19. Nb3 {[%clk 0:01:12.8]}
19... Ke8 {[%clk 0:02:15.3]} 20. Bc5 {[%clk 0:01:10.7]} 20... Rc7 {[%clk
0:02:06]} 21. a5 {[%clk 0:01:06.1]} 21... Be7 {[%clk 0:02:00.1]} 22. f3 {[%clk
0:01:02.7]} 22... h5 {[%clk 0:01:57.5]} 23. Kf2 {[%clk 0:01:00.6]} 23... Kf7
{[%clk 0:01:54.4]} 24. Bxe7 {[%clk 0:01:00.1]} 24... Kxe7 {[%clk 0:01:54.3]} 25.
Nc5 {[%clk 0:01:01]} 25... Bc8 {[%clk 0:01:52.4]} 26. b4 {[%clk 0:00:59.4]}
26... e5 {[%clk 0:01:51.1]} 27. Rd2 {[%clk 0:00:58.7]} 27... Rd8 {[%clk
0:01:49.5]} 28. Rxd8 {[%clk 0:00:56.5]} 28... Kxd8 {[%clk 0:01:49.6]} 29. Rd1+
{[%clk 0:00:57.4]} 29... Ke7 {[%clk 0:01:49.8]} 30. g3 {[%clk 0:00:52.5]} 30...
Ra7 {[%clk 0:01:48.5]} 31. Ke3 {[%clk 0:00:51.5]} 31... Be6 {[%clk 0:01:47.3]}
32. Kd2 {[%clk 0:00:43.3]} 32... Bc4 {[%clk 0:01:44.7]} 33. Ke3 {[%clk
0:00:38.1]} 33... Bb5 {[%clk 0:01:44.7]} 34. f4 {[%clk 0:00:36.8]} 34... exf4+
{[%clk 0:01:42.7]} 35. gxf4 {[%clk 0:00:35.5]} 35... g6 {[%clk 0:01:43.2]} 36.
e5 {[%clk 0:00:34.7]} 36... fxe5 {[%clk 0:01:32.5]} 37. fxe5 {[%clk 0:00:35.4]}
37... g5 {[%clk 0:01:33.1]} 38. Rd6 {[%clk 0:00:33.7]} 38... Ke8 {[%clk
0:01:26.5]} 39. Rg6 {[%clk 0:00:31]} 39... g4 {[%clk 0:01:24.1]} 40. e6 {[%clk
0:00:31]} 40... Rh7 {[%clk 0:01:23.1]} 41. Kf4 {[%clk 0:00:30.4]} 41... Ke7
{[%clk 0:01:21.4]} 42. Ke5 {[%clk 0:00:29.6]} 42... h4 {[%clk 0:01:20]} 0-1

[Event "*** Titled Tuesday Blitz"]
[Site "Chess.com"]
[Date "2020.12.01"]
[Round "3"]
[White "GP9isback23"]
[Black "Blitzstream"]
[Result "1-0"]
[WhiteElo "2523"]
[BlackElo "2758"]
[TimeControl "180+1"]
[EndTime "10:27:25 PST"]
[Termination "GP9isback23 won by resignation"]

1. d4 {[%clk 0:02:59.3]} 1... d5 {[%clk 0:03:00.4]} 2. Nf3 {[%clk 0:02:57.3]}
2... Nf6 {[%clk 0:02:59.9]} 3. c4 {[%clk 0:02:55.7]} 3... c6 {[%clk 0:03:00.3]}
4. e3 {[%clk 0:02:54.9]} 4... Bf5 {[%clk 0:03:00.5]} 5. Nc3 {[%clk 0:02:53.6]}
5... e6 {[%clk 0:03:00.6]} 6. Bd3 {[%clk 0:02:54]} 6... Bxd3 {[%clk 0:03:00]} 7.
Qxd3 {[%clk 0:02:54.9]} 7... Nbd7 {[%clk 0:03:00.3]} 8. O-O {[%clk 0:02:54.7]}
8... Be7 {[%clk 0:02:59.4]} 9. e4 {[%clk 0:02:47.4]} 9... dxe4 {[%clk
0:03:00.3]} 10. Nxe4 {[%clk 0:02:47.2]} 10... Nxe4 {[%clk 0:02:58.5]} 11. Qxe4
{[%clk 0:02:47.2]} 11... O-O {[%clk 0:02:59.4]} 12. Rd1 {[%clk 0:02:45.1]} 12...
Qb6 {[%clk 0:02:54.3]} 13. Qc2 {[%clk 0:02:39.5]} 13... Rfd8 {[%clk 0:02:46.6]}
14. Be3 {[%clk 0:02:38.7]} 14... Qc7 {[%clk 0:02:46.7]} 15. Rac1 {[%clk
0:02:35.2]} 15... Nf6 {[%clk 0:02:38]} 16. a3 {[%clk 0:02:14]} 16... Bd6 {[%clk
0:02:33]} 17. h3 {[%clk 0:02:11.4]} 17... Bf4 {[%clk 0:02:32.7]} 18. Qd2 {[%clk
0:02:10.1]} 18... Ne4 {[%clk 0:02:24.4]} 19. Bxf4 {[%clk 0:02:00.3]} 19... Nxd2
{[%clk 0:01:46.5]} 20. Bxc7 {[%clk 0:01:58.3]} 20... Nxf3+ {[%clk 0:01:46.4]}
21. gxf3 {[%clk 0:01:58.4]} 21... Rd7 {[%clk 0:01:47.3]} 22. Bf4 {[%clk
0:01:51.5]} 22... Rad8 {[%clk 0:01:46]} 23. Be3 {[%clk 0:01:51.3]} 23... c5
{[%clk 0:01:40.4]} 24. d5 {[%clk 0:01:49.3]} 24... b6 {[%clk 0:01:40.2]} 25. d6
{[%clk 0:01:16.7]} 25... Rxd6 {[%clk 0:01:40]} 26. Rxd6 {[%clk 0:01:16.5]} 26...
Rxd6 {[%clk 0:01:40.9]} 27. Kf1 {[%clk 0:01:15.7]} 27... e5 {[%clk 0:01:39.3]}
28. Ke2 {[%clk 0:01:14.3]} 28... Kf8 {[%clk 0:01:34.6]} 29. Rd1 {[%clk
0:01:14.1]} 29... Ke7 {[%clk 0:01:34.4]} 30. Rxd6 {[%clk 0:01:06.2]} 30... Kxd6
{[%clk 0:01:35.3]} 31. b4 {[%clk 0:01:05.4]} 31... cxb4 {[%clk 0:01:28]} 32.
axb4 {[%clk 0:01:05.1]} 32... f6 {[%clk 0:01:26.7]} 33. Kd3 {[%clk 0:01:00.3]}
33... f5 {[%clk 0:01:24.9]} 34. f4 {[%clk 0:00:56]} 34... exf4 {[%clk
0:01:18.4]} 35. Bxf4+ {[%clk 0:00:55.4]} 35... Kc6 {[%clk 0:01:19.3]} 36. b5+
{[%clk 0:00:52.8]} 36... Kb7 {[%clk 0:01:12.6]} 37. Kd4 {[%clk 0:00:52]} 37...
a5 {[%clk 0:01:12.6]} 38. bxa6+ {[%clk 0:00:51.6]} 38... Kxa6 {[%clk 0:01:12.8]}
39. Ke5 {[%clk 0:00:51.7]} 39... g6 {[%clk 0:01:12.5]} 40. Kf6 {[%clk
0:00:50.4]} 40... Ka5 {[%clk 0:01:13.1]} 41. Kg7 {[%clk 0:00:48.3]} 41... Kb4
{[%clk 0:01:13.4]} 42. Bc7 {[%clk 0:00:46]} 42... Kxc4 {[%clk 0:01:12.7]} 43.
Bxb6 {[%clk 0:00:46.1]} 43... Kd5 {[%clk 0:01:12.3]} 44. Kxh7 {[%clk 0:00:45.7]}
44... g5 {[%clk 0:01:12.8]} 45. Kg6 {[%clk 0:00:45.2]} 45... g4 {[%clk
0:01:13.3]} 46. h4 {[%clk 0:00:30.5]} 46... f4 {[%clk 0:01:13.3]} 47. h5 {[%clk
0:00:30.1]} 47... Kc6 {[%clk 0:01:11.2]} 48. Ba7 {[%clk 0:00:28.5]} 48... Kb7
{[%clk 0:01:10.2]} 49. Bd4 {[%clk 0:00:28.1]} 1-0

[Event "*** Titled Tuesday Blitz"]
[Site "Chess.com"]
[Date "2020.12.01"]
[Round "3"]
[White "pastouche06"]
[Black "BJthechessgod"]
[Result "0-1"]
[WhiteElo "2502"]
[BlackElo "2296"]
[TimeControl "180+1"]
[EndTime "10:27:25 PST"]
[Termination "BJthechessgod won on time"]

1. d4 {[%clk 0:03:00.9]} 1... Nf6 {[%clk 0:02:59.8]} 2. c4 {[%clk 0:03:00]} 2...
e6 {[%clk 0:03:00.1]} 3. Nc3 {[%clk 0:02:59.7]} 3... Bb4 {[%clk 0:02:59.8]} 4.
e3 {[%clk 0:02:59.7]} 4... O-O {[%clk 0:02:59.2]} 5. Ne2 {[%clk 0:02:59.7]} 5...
d5 {[%clk 0:02:59]} 6. a3 {[%clk 0:02:59.4]} 6... Bxc3+ {[%clk 0:02:58.5]} 7.
Nxc3 {[%clk 0:02:59.3]} 7... c6 {[%clk 0:02:57.2]} 8. Bd3 {[%clk 0:02:39.8]}
8... dxc4 {[%clk 0:02:56.3]} 9. Bxc4 {[%clk 0:02:39.9]} 9... b5 {[%clk
0:02:57.2]} 10. Bd3 {[%clk 0:02:33.8]} 10... Nbd7 {[%clk 0:02:53.1]} 11. e4
{[%clk 0:02:00.2]} 11... e5 {[%clk 0:02:48]} 12. Be2 {[%clk 0:02:00.4]} 12...
exd4 {[%clk 0:02:44.3]} 13. Qxd4 {[%clk 0:02:01.3]} 13... c5 {[%clk 0:02:33.6]}
14. Qd6 {[%clk 0:01:51.4]} 14... b4 {[%clk 0:02:21.2]} 15. axb4 {[%clk 0:01:49]}
15... cxb4 {[%clk 0:02:22.1]} 16. Qxb4 {[%clk 0:01:48.7]} 16... Rb8 {[%clk
0:02:21.4]} 17. Qd6 {[%clk 0:01:43.7]} 17... Re8 {[%clk 0:02:20.9]} 18. f3
{[%clk 0:01:32.1]} 18... Rb6 {[%clk 0:01:55.2]} 19. Qd4 {[%clk 0:01:30.7]} 19...
Qc7 {[%clk 0:01:54.2]} 20. O-O {[%clk 0:01:24]} 20... a6 {[%clk 0:01:45.9]} 21.
Rd1 {[%clk 0:01:15]} 21... Nc5 {[%clk 0:01:43.5]} 22. Ra3 {[%clk 0:01:07.8]}
22... Be6 {[%clk 0:01:42.5]} 23. e5 {[%clk 0:00:57.6]} 23... Nfd7 {[%clk
0:01:42]} 24. f4 {[%clk 0:00:57.6]} 24... Nb3 {[%clk 0:01:41.8]} 25. Qe3 {[%clk
0:00:32.1]} 25... Nxc1 {[%clk 0:01:36.9]} 26. Rxc1 {[%clk 0:00:33]} 26... Rxb2
{[%clk 0:01:33]} 27. Rxa6 {[%clk 0:00:27.1]} 27... Qb8 {[%clk 0:01:13]} 28. Ne4
{[%clk 0:00:21.6]} 28... Rc8 {[%clk 0:01:09.6]} 29. Rxc8+ {[%clk 0:00:18.6]}
29... Qxc8 {[%clk 0:01:10.5]} 30. Nd6 {[%clk 0:00:18.8]} 30... Qc2 {[%clk
0:00:56.5]} 31. Kf1 {[%clk 0:00:15.4]} 31... Bg4 {[%clk 0:00:49.4]} 32. Bxg4
{[%clk 0:00:02.5]} 32... Rb1+ {[%clk 0:00:49.1]} 0-1

[Event "*** Titled Tuesday Blitz"]
[Site "Chess.com"]
[Date "2020.12.01"]
[Round "3"]
[White "igorkovalenko"]
[Black "RaphCamora"]
[Result "1-0"]
[WhiteElo "2780"]
[BlackElo "2440"]
[TimeControl "180+1"]
[EndTime "10:27:26 PST"]
[Termination "igorkovalenko won by resignation"]

1. e4 {[%clk 0:02:14.7]} 1... c5 {[%clk 0:02:59.2]} 2. Nf3 {[%clk 0:02:13.1]}
2... Nc6 {[%clk 0:02:58.8]} 3. Bb5 {[%clk 0:02:12]} 3... g6 {[%clk 0:02:58]} 4.
O-O {[%clk 0:02:11.7]} 4... Bg7 {[%clk 0:02:57.7]} 5. c3 {[%clk 0:02:11.3]} 5...
Nf6 {[%clk 0:02:57.2]} 6. Re1 {[%clk 0:02:11.4]} 6... O-O {[%clk 0:02:57.3]} 7.
h3 {[%clk 0:02:10.6]} 7... Qb6 {[%clk 0:02:56]} 8. Na3 {[%clk 0:02:10.3]} 8...
Rd8 {[%clk 0:02:51.7]} 9. Ba4 {[%clk 0:02:09.9]} 9... d5 {[%clk 0:02:39]} 10. e5
{[%clk 0:02:07.3]} 10... Ne8 {[%clk 0:02:31.2]} 11. d3 {[%clk 0:02:04.5]} 11...
Qc7 {[%clk 0:02:29.2]} 12. Qe2 {[%clk 0:02:03.5]} 12... a6 {[%clk 0:02:28.6]}
13. Bc2 {[%clk 0:01:56.6]} 13... b5 {[%clk 0:02:28.3]} 14. d4 {[%clk 0:01:54.8]}
14... cxd4 {[%clk 0:02:24.2]} 15. cxd4 {[%clk 0:01:54.8]} 15... b4 {[%clk
0:02:24.7]} 16. Nb1 {[%clk 0:01:54.5]} 16... a5 {[%clk 0:02:25.4]} 17. Bd3
{[%clk 0:01:54.3]} 17... Qb6 {[%clk 0:02:25.5]} 18. Be3 {[%clk 0:01:53.7]} 18...
Nc7 {[%clk 0:02:26]} 19. Nbd2 {[%clk 0:01:53.5]} 19... Ba6 {[%clk 0:02:25.5]}
20. Rec1 {[%clk 0:01:51.3]} 20... Ne6 {[%clk 0:02:23.5]} 21. Bxa6 {[%clk
0:01:48.1]} 21... Qxa6 {[%clk 0:02:24.4]} 22. Qxa6 {[%clk 0:01:47.7]} 22... Rxa6
{[%clk 0:02:25.3]} 23. Rc2 {[%clk 0:01:47.9]} 23... Na7 {[%clk 0:02:05.3]} 24.
Rac1 {[%clk 0:01:47.3]} 24... h6 {[%clk 0:01:57.5]} 25. h4 {[%clk 0:01:47]}
25... Kf8 {[%clk 0:01:56.4]} 26. Nb3 {[%clk 0:01:41.5]} 26... Ke8 {[%clk
0:01:39.9]} 27. Nc5 {[%clk 0:01:39]} 27... Nxc5 {[%clk 0:01:40]} 28. Rxc5 {[%clk
0:01:39.9]} 28... e6 {[%clk 0:01:40.2]} 29. g4 {[%clk 0:01:39.1]} 29... Bf8
{[%clk 0:01:36.7]} 30. Rc7 {[%clk 0:01:32.9]} 30... Rd7 {[%clk 0:01:37.1]} 31.
R7c2 {[%clk 0:01:32.7]} 31... Rb6 {[%clk 0:01:32.7]} 32. Nd2 {[%clk 0:01:29.5]}
32... a4 {[%clk 0:01:30]} 33. h5 {[%clk 0:01:25.2]} 33... Rbb7 {[%clk
0:01:17.2]} 34. g5 {[%clk 0:01:08]} 34... hxg5 {[%clk 0:01:06.9]} 35. Bxg5
{[%clk 0:01:08.9]} 35... Be7 {[%clk 0:00:51.2]} 36. h6 {[%clk 0:01:07.4]} 36...
Rd8 {[%clk 0:00:11.3]} 37. h7 {[%clk 0:01:01]} 37... Kd7 {[%clk 0:00:10.1]} 38.
Bxe7 {[%clk 0:01:01.4]} 38... Kxe7 {[%clk 0:00:10.4]} 39. Rc7+ {[%clk
0:01:01.6]} 1-0

[Event "*** Titled Tuesday Blitz"]
[Site "Chess.com"]
[Date "2020.12.01"]
[Round "3"]
[White "Gurvich_Vitaly"]
[Black "AlexeiShirov"]
[Result "0-1"]
[WhiteElo "2601"]
[BlackElo "2852"]
[TimeControl "180+1"]
[EndTime "10:27:30 PST"]
[Termination "AlexeiShirov won by resignation"]

1. e4 {[%clk 0:03:00.9]} 1... e5 {[%clk 0:02:59.3]} 2. f4 {[%clk 0:03:00.8]}
2... exf4 {[%clk 0:02:58.1]} 3. Nf3 {[%clk 0:03:00.1]} 3... g5 {[%clk
0:02:57.1]} 4. d4 {[%clk 0:02:59.3]} 4... Bg7 {[%clk 0:02:42.9]} 5. Nc3 {[%clk
0:02:52.5]} 5... d6 {[%clk 0:02:34.6]} 6. Bc4 {[%clk 0:02:34.8]} 6... h6 {[%clk
0:02:28.6]} 7. h4 {[%clk 0:02:23.8]} 7... Nc6 {[%clk 0:02:20.6]} 8. Qd3 {[%clk
0:01:50.5]} 8... g4 {[%clk 0:02:16.8]} 9. Bxf4 {[%clk 0:01:47]} 9... gxf3 {[%clk
0:02:13.3]} 10. gxf3 {[%clk 0:01:36.8]} 10... Bxd4 {[%clk 0:02:07.8]} 11. O-O-O
{[%clk 0:01:34.5]} 11... Nf6 {[%clk 0:01:58.8]} 12. a3 {[%clk 0:01:01.2]} 12...
Be6 {[%clk 0:01:54.8]} 13. Nb5 {[%clk 0:00:49.7]} 13... Be5 {[%clk 0:01:43]} 14.
Bd2 {[%clk 0:00:46.5]} 14... Nh5 {[%clk 0:01:35]} 15. Qb3 {[%clk 0:00:19.1]}
15... Qd7 {[%clk 0:01:25.7]} 16. Bd5 {[%clk 0:00:17.2]} 16... Nf4 {[%clk
0:01:17.8]} 17. Bxf4 {[%clk 0:00:15.2]} 17... Bxf4+ {[%clk 0:01:12.7]} 18. Kb1
{[%clk 0:00:15]} 18... Ne5 {[%clk 0:01:05.4]} 19. Rhg1 {[%clk 0:00:10.2]} 19...
Bxd5 {[%clk 0:00:57.4]} 20. Rxd5 {[%clk 0:00:04.9]} 20... a6 {[%clk 0:00:46.1]}
21. Nc3 {[%clk 0:00:02.6]} 21... O-O-O {[%clk 0:00:43.7]} 22. Rgd1 {[%clk
0:00:01.9]} 22... Nxf3 {[%clk 0:00:39]} 23. Na4 {[%clk 0:00:01.6]} 23... Nd2+
{[%clk 0:00:32.4]} 24. R5xd2 {[%clk 0:00:01.5]} 24... Bxd2 {[%clk 0:00:32.1]}
25. Rxd2 {[%clk 0:00:02.4]} 25... Qb5 {[%clk 0:00:32]} 0-1